Cogmind - Beta 15 @@@ ROGUE MODE // 2025.09.11 @ 23:48:10 Player: shapeshifter Result: Destroyed 0b10! Performance ------------- Evolutions (9) 4500 Regions Visited (29) 5800 Robots Destroyed (231) 1155 Value Destroyed (11052) 11052 Prototype IDs (66) 1320 Alien Tech Used (9) 1800 Bonus (27608) 27608 TOTAL SCORE: 53235 Bonus ------- High Alert Combat Kills 2105 Follower Combat Kills 561 Entered Garrisons 400 Entered DSFs 500 Aligned with FarCom 300 Acquired ECA 300 Used Core Reset Matrix 3000 Scanned by Researcher 500 Met Sigix 2000 Escaped with Sigix 10000 Met MAIN.C 5000 Win 3000 Friendly Fire -58 Cogmind --------- Core Integrity 1421/1600 Matter 268/300 Energy 88/100 System Corruption 2% Temperature Cool (3) Movement Flying (30) Location Tau Ceti IV Orbit Parts ------- > --- POWER (2) -------- Matter Drive > --- PROPULSION (10) -- Cooled Field Propulsion Drive Diametric Drive Diametric Drive Improved Q-thruster > --- UTILITY (10) ----- Enhanced Optical Array Advanced Sensor Array Advanced Signal Interpreter Advanced Target Analyzer System Shield Advanced System Shield > --- WEAPON (3) ------- (None) > --- INVENTORY (5) ---- Sigix Containment Pod Sigix Containment Pod Peak State ------------ > --- POWER ------------ Matter Drive > --- PROPULSION ------- Field Propulsion Drive Cooled Field Propulsion Drive Cooled Field Propulsion Drive Diametric Drive Diametric Drive Diametric Drive Improved Q-thruster > --- UTILITY ---------- Enhanced Optical Array Advanced Sensor Array Advanced Signal Interpreter Advanced Target Analyzer Phase Redirector Advanced System Shield Bomb Drone Bay > --- WEAPON ----------- Heavy Proton Missile Launcher Sigix Broadsword > --- INVENTORY -------- Transdimensional Reconstructor Subatomic Replicator Terrabomb Sigix Containment Pod [Rating: 167] Favorites ----------- Power Enhanced Nuclear Core Engine Cooled Ion Engine Power Core Enhanced Nuclear Core Reactor Cold Fusion Reactor Propulsion Light Treads Treads Light Treads Leg Advanced VSS Leg Wheel Armored Huge Wheel Hover Unit Linear Gravjet Flight Unit Diametric Drive Utility High-capacity Storage Unit Device Experimental Heat Sink Storage High-capacity Storage Unit Processor Improved Signal Interpreter Hackware Advanced System Shield Protection Hardened Medium Armor Plating Artifact Phase Redirector Weapon Heavy Assault Rifle Energy Gun AWS/Thermal Energy Cannon Enhanced Nova Cannon Ballistic Gun Heavy Assault Rifle Ballistic Cannon Heavy Mass Driver Launcher Rocket Launcher Impact Weapon Core Stripper Slashing Weapon Longsword +1 Piercing Weapon Enhanced Force Lance Build | -11 -10 -9 -9 -9 -8 -8 -8 -8 -7 -7 -7 -7 -6 -6 -6 -5 -5 -5 -4 -4 -4 -4 -3 -3 -3 -2 -2 -1 -1 ------- Run | Yrd Mat Mat Min Exi Min Mat Gar Mat Fac Gar Fac DSF Fac Was Fac Fac Was Fac Fac Upp Upp Zhi Pro Res Arm Res Qua Acc Com Slots Evolved 18 | . . 2 . . . 2 . . 2 . . . 2 . . 2 . . 2 . . . . 2 . 2 . 2 . Power 1 | . . . . . . . . . . . . . 1 . . . . . . . . . . . . . . . . Propulsion 8 | . . . . . . . . . 1 . . . 1 . . . . . 2 . . . . 2 . 2 . . . Utility 8 | . . 1 . . . 2 . . 1 . . . . . . 2 . . . . . . . . . . . 2 . Weapon 1 | . . 1 . . . . . . . . . . . . . . . . . . . . . . . . . . . Parts Attached 199 | 7 1 26 . 19 1 11 11 6 9 12 . 5 2 2 7 21 2 6 5 8 1 6 1 1 14 7 5 3 . Power 20 | 1 . 5 . 2 . . 1 . 1 1 . . . 1 . 1 . 1 . . . 1 . 1 1 2 1 . . Engine 6 | 1 . 2 . 1 . . 1 . . . . . . 1 . . . . . . . . . . . . . . . Core 7 | . . 3 . . . . . . 1 1 . . . . . 1 . 1 . . . . . . . . . . . Reactor 7 | . . . . 1 . . . . . . . . . . . . . . . . . 1 . 1 1 2 1 . . Propulsion 53 | 2 . 6 . 5 1 5 1 1 1 2 . 3 1 . 1 3 2 1 4 . . 3 . . 8 2 1 . . Treads 20 | 2 . 6 . 4 1 3 . . . . . 3 1 . . . . . . . . . . . . . . . . Leg 4 | . . . . 1 . . . . . 2 . . . . . 1 . . . . . . . . . . . . . Wheel 4 | . . . . . . 1 1 . 1 . . . . . 1 . . . . . . . . . . . . . . Hover 7 | . . . . . . . . 1 . . . . . . . 2 1 1 1 . . . . . 1 . . . . Flight 18 | . . . . . . 1 . . . . . . . . . . 1 . 3 . . 3 . . 7 2 1 . . Utility 71 | 2 . 6 . 5 . 6 3 4 5 4 . 1 1 1 5 10 . 3 . 6 1 2 . . 1 2 1 2 . Device 18 | 1 . . . 3 . 1 . . 2 1 . . . 1 2 3 . 1 . 1 . . . . . 1 . 1 . Storage 5 | 1 . 1 . 1 . 1 . . 1 . . . . . . . . . . . . . . . . . . . . Processor 21 | . . 1 . . . 1 . 1 1 2 . . . . 3 5 . 1 . 3 1 1 . . . 1 . . . Hackware 3 | . . . . . . . . . . . . . 1 . . . . . . . . 1 . . . . . 1 . Protection 23 | . . 4 . 1 . 3 3 3 1 1 . 1 . . . 2 . 1 . 2 . . . . 1 . . . . Artifact 1 | . . . . . . . . . . . . . . . . . . . . . . . . . . . 1 . . Weapon 55 | 2 1 9 . 7 . . 6 1 2 5 . 1 . . 1 7 . 1 1 2 . . 1 . 4 1 2 1 . Energy Gun 5 | 1 . . . . . . 1 . . . . . . . . 2 . . . 1 . . . . . . . . . Energy Cannon 2 | . . . . . . . . . . . . . . . 1 . . . . . . . . . . 1 . . . Ballistic Gun 32 | 1 1 9 . 5 . . 5 . 2 2 . . . . . 4 . 1 . . . . . . 2 . . . . Ballistic Cannon 5 | . . . . . . . . . . 3 . 1 . . . 1 . . . . . . . . . . . . . Launcher 3 | . . . . 1 . . . 1 . . . . . . . . . . . . . . . . . . . 1 . Special Weapon . | . . . . . . . . . . . . . . . . . . . . . . . . . . . . . . Impact Weapon 1 | . . . . . . . . . . . . . . . . . . . . . . . . . . . 1 . . Slashing Weapon 5 | . . . . 1 . . . . . . . . . . . . . . 1 1 . . . . 1 . 1 . . Piercing Weapon 2 | . . . . . . . . . . . . . . . . . . . . . . . 1 . 1 . . . . Special Melee Weapon . | . . . . . . . . . . . . . . . . . . . . . . . . . . . . . . Unidentified Prototypes 27 | . . 3 . 6 . 2 . 1 2 . . . . . . 1 . . 2 . 1 3 . . 3 1 1 1 . Corrupted Parts 1 | . . . . . . . . . . . . . . . . . 1 . . . . . . . . . . . . System Corruption 2 | . . . . . . . . . . . . . . . . . 2 . . . . . . . . . . . . Parts Lost 64 | . . 1 . 7 . . 7 2 1 4 . 1 . 6 1 11 1 . . 4 2 . . . 6 4 . 2 4 Power 5 | . . . . . . . 1 . 1 . . . . 1 . . . . . . . . . . 1 1 . . . Propulsion 21 | . . . . 2 . . 1 . . . . . . 2 . 4 . . . 2 2 . . . 2 3 . 1 2 Utility 24 | . . . . 1 . . 2 1 . 4 . 1 . 3 . 5 1 . . 2 . . . . 2 . . 1 1 Weapon 14 | . . 1 . 4 . . 3 1 . . . . . . 1 2 . . . . . . . . 1 . . . 1 Highest Loss Streak 7 | . . 1 . 7 . . 3 2 1 1 . 1 . 5 1 6 1 . . 2 2 . . . 3 3 . 2 4 To Critical Strikes 4 | . . . . 4 . . . . . . . . . . . . . . . . . . . . . . . . . Average Backups 12 | 2 5 9 14 15 15 14 13 14 14 13 16 16 16 14 3 3 3 3 4 3 3 3 3 4 3 3 3 3 3 Power . | . 1 1 . . . . . . . . 2 1 3 2 . . . . . . . . . . . . . . . Propulsion 1 | 1 2 . 1 2 1 1 1 1 1 . 1 2 . . . . . . . . . . . . 1 . . . . Utility 7 | . . 4 6 7 11 9 9 11 10 8 8 8 7 7 2 3 1 1 3 1 2 1 2 2 1 1 . . . Weapon 2 | . 2 2 6 4 2 2 1 1 . 3 4 2 5 4 . . 2 1 . 1 1 1 . 1 . . . . . Tool/Special . | . . . . . . . . . . . . . . . . . . . . . . . . . . . . . . Unused Backups 68 | . . 9 4 12 . 5 1 . 3 1 . 10 . 12 1 3 . 2 1 . . . . . 1 . 2 . 1 Power 11 | . . 2 . 4 . . . . 1 . . 2 . 2 . . . . . . . . . . . . . . . Propulsion 9 | . . 2 . . . 2 . . . 1 . 2 . . . . . 1 1 . . . . . . . . . . Utility 33 | . . 2 4 8 . 3 1 . 2 . . 4 . 5 . 2 . . . . . . . . 1 . 1 . . Weapon 11 | . . 2 . . . . . . . . . 2 . 4 1 1 . 1 . . . . . . . . . . . Tool/Special 4 | . . 1 . . . . . . . . . . . 1 . . . . . . . . . . . . 1 . 1 Average Slot Usage (%) 86 | . 100 99 100 94 88 83 83 76 81 86 92 91 86 67 18 60 42 52 69 70 49 43 64 56 80 73 71 66 56 Engine 2 | . 14 3 11 8 . . . 9 3 . . . . . . . . . . . . . . . . . . . . Core 3 | . . 7 . . . . . . 3 7 7 7 6 5 . . . 2 5 5 1 . . . . . . . . Reactor 2 | . . . . 2 11 9 8 . . . . . . . . . . . . . . 1 5 3 3 3 4 4 4 Treads 11 | . 28 22 22 22 22 13 . . . . . 8 26 20 . . . . . . . . . . . . . . . Leg 4 | . . . . . . . . . . 19 23 14 . . . . . . . . . . . . . . . . . Wheel 1 | . . . . . . 2 8 8 8 2 . . . . . 3 . . . . . . . . . . . . . Flight 1 | . . . . . . . . . . . . . . . . . 3 . 6 13 3 5 15 14 32 33 29 28 22 Device 3 | . 14 6 . . . 2 . . 7 7 7 7 6 5 7 11 3 2 2 . . . . . . 1 7 8 7 Storage 8 | . 14 11 11 11 11 9 9 9 7 7 7 7 6 5 . . . . . . . . . . . . . . . Processor 11 | . . . . . . 6 9 16 22 20 23 23 13 12 6 26 33 31 31 31 33 35 36 33 29 22 16 12 12 Protection 13 | . . 15 22 21 22 22 26 11 7 4 7 6 6 1 . 3 . 1 5 5 1 . . . 1 . . . . Ballistic Gun 13 | . 23 32 33 22 11 9 18 11 8 6 7 . . . . 3 . 5 5 . . . . . 1 . . . . Ballistic Cannon 2 | . . . . . . . . . . 8 7 7 6 2 . 2 . . . . . . . . . . . . . Slashing Weapon 3 | . . . . 2 11 9 2 4 7 . . 6 6 5 . . . . . 5 2 . . . 1 . . 4 2 Peak Build Rating 167 | 7 7 20 20 56 51 77 66 56 69 86 86 86 76 72 32 65 51 77 92 96 86 76 82 82 139 143 160 167 141 Average Rating 53 | 5 7 17 19 28 50 56 57 50 60 75 86 81 72 53 16 50 36 57 78 81 54 49 76 76 121 122 136 162 125 On Entrance 61 | . 7 7 19 20 51 51 63 46 56 69 86 86 73 72 9 28 35 40 76 85 88 38 76 76 76 99 120 160 141 Naked Turns 5 | . . . . . . . . . . . . . . 5 . . . . . . . . . . . . . . . Heaviest Build 95 | 12 12 46 46 74 74 76 95 78 80 83 81 81 78 78 9 34 1 29 29 23 4 18 24 18 39 37 49 49 34 Greatest Support 80 | 40 40 43 40 40 40 46 28 28 40 66 66 66 80 80 3 22 26 35 35 29 7 18 27 18 61 56 57 51 37 Greatest Overweight (x) 25 | . . 1 1 1 1 2 3 25 2 2 1 1 . 1 2 2 . . 4 . . . . . 1 . . 1 . Average Overweight (x) . | . . . 1 1 1 1 2 2 1 . 1 1 . . . . . . . . . . . . . . . . . Largest Inventory Capacity 20 | 8 8 15 15 20 20 20 20 20 20 20 20 20 20 20 5 5 5 5 5 5 5 5 5 5 5 5 5 5 5 Average Capacity 16 | 7 8 10 15 19 20 20 20 20 20 20 20 20 20 18 5 5 5 5 5 5 5 5 5 5 5 5 5 5 5 Most Carried 20 | 5 7 15 15 20 20 20 20 20 20 20 20 20 20 20 5 5 5 5 5 5 5 5 5 5 5 5 5 5 5 Average Carried 15 | 2 5 9 14 17 19 19 19 19 19 18 20 19 19 18 4 4 3 4 4 4 4 4 4 4 4 4 4 5 4 Final Capacity 20 | 8 8 15 15 20 20 20 20 20 20 20 20 20 20 5 5 5 5 5 5 5 5 5 5 5 5 5 5 5 5 Final Carried 20 | 3 7 15 15 20 20 20 20 19 20 20 20 20 20 4 5 5 5 5 5 5 5 5 5 5 5 4 5 5 5 Class Distribution -------------------- 40% | Mutant 26% | Scavenger-Tank 10% | Scavenger-Mutant 7% | Scavenger-Gunner 6% | Tank 3% | Sprinter Dominant Class ---------------- Mutant | -10/Materials Scavenger-Tank | -9/Materials Scavenger-Tank | -9/Mines Scavenger-Tank | -9/Exiles Mutant | -8/Mines Mutant | -8/Materials Scavenger-Tank | -8/Garrison Mutant | -8/Materials Mutant | -7/Factory Scavenger-Gunner | -7/Garrison Scavenger-Gunner | -7/Factory Scavenger-Mutant | -7/DSF Mutant | -6/Factory Mutant | -6/Waste Mutant | -6/Factory Mutant | -5/Factory Mutant | -5/Waste Mutant | -5/Factory Mutant | -4/Factory Sprinter | -4/Upper Caves Mutant | -4/Upper Caves Mutant | -4/Zhirov Sprinter | -3/Proximity Caves Sprinter | -3/Research Sprinter | -3/Armory Sprinter | -2/Research Scout | -2/Quarantine Alien-Assassin | -1/Access Alien-Scout | -1/Command Resources | -11 -10 -9 -9 -9 -8 -8 -8 -8 -7 -7 -7 -7 -6 -6 -6 -5 -5 -5 -4 -4 -4 -4 -3 -3 -3 -2 -2 -1 -1 ----------- Run | Yrd Mat Mat Min Exi Min Mat Gar Mat Fac Gar Fac DSF Fac Was Fac Fac Was Fac Fac Upp Upp Zhi Pro Res Arm Res Qua Acc Com Matter Collected 9232 | 190 43 1598 54 1085 22 200 897 466 237 1186 . 1790 54 . 61 604 . . 120 191 30 . . . . 101 281 22 . Remotely . | . . . . . . . . . . . . . . . . . . . . . . . . . . . . . . Salvage Created 11396 | 83 43 1822 148 492 333 805 2097 1423 439 788 . 1337 47 . 186 681 . . 120 118 30 . . . . 101 281 22 . Parts 623 | 13 6 104 10 66 16 55 118 77 20 27 . 24 5 . 6 37 . . 4 6 3 . . . . 8 15 3 . Haulers Intercepted 10 | . . 4 . . . 2 . 1 . . . . . . . 2 . . 1 . . . . . . . . . . Recyclers Shooed 2 | . . 1 . . . 1 . . . . . . . . . . . . . . . . . . . . . . . Parts Field Recycled . | . . . . . . . . . . . . . . . . . . . . . . . . . . . . . . Retrieved Matter . | . . . . . . . . . . . . . . . . . . . . . . . . . . . . . . Parts Self-Destructed 5 | . . . . . . . . . . . . . . . . . . . . 5 . . . . . . . . . Prevented . | . . . . . . . . . . . . . . . . . . . . . . . . . . . . . . Kills | -11 -10 -9 -9 -9 -8 -8 -8 -8 -7 -7 -7 -7 -6 -6 -6 -5 -5 -5 -4 -4 -4 -4 -3 -3 -3 -2 -2 -1 -1 ------- Run | Yrd Mat Mat Min Exi Min Mat Gar Mat Fac Gar Fac DSF Fac Was Fac Fac Was Fac Fac Upp Upp Zhi Pro Res Arm Res Qua Acc Com Combat Hostiles Destroyed 166 | . 3 28 3 5 6 14 38 23 5 22 . 5 1 . 3 6 . . . 2 1 . . . . . 1 . . Melee 7 | . . . . . . . . 2 1 . . . . . . . . . . 2 1 . . . . . 1 . . Guns 128 | . 3 28 3 1 6 14 38 18 4 9 . 1 . . . 3 . . . . . . . . . . . . . Cannons 22 | . . . . . . . . . . 13 . 4 1 . 1 3 . . . . . . . . . . . . . AOE 9 | . . . . 4 . . . 3 . . . . . . 2 . . . . . . . . . . . . . . Classes Destroyed 23 | 1 1 8 . 3 . 1 3 3 . . . 1 . . . . . . . . 1 . . . . . 1 . . Worker 14 | . . 3 . . 2 3 . . 1 . . . . . . 1 . . . . . . . . . 4 . . . Builder 6 | . . . . . . . . 1 2 . . . . . . 2 . . . . . . . . . 1 . . . Tunneler 4 | 3 . . . . . . . 1 . . . . . . . . . . . . . . . . . . . . . Hauler 10 | . . 4 . . . 2 . 1 . . . . . . . 2 . . 1 . . . . . . . . . . Recycler 6 | . . 3 . . . . . 2 1 . . . . . . . . . . . . . . . . . . . . Operator 5 | . . . . . . . . 2 . . . . 2 . . . . . . . . . . . . . . 1 . Turret 1 | . . . . 1 . . . . . . . . . . . . . . . . . . . . . . . . . Watcher 10 | . . 4 . . . 2 2 1 1 . . . . . . . . . . . . . . . . . . . . Swarmer 20 | . 3 3 . . . 4 3 . . 7 . . . . . . . . . . . . . . . . . . . Cutter 2 | . . . . . . . 2 . . . . . . . . . . . . . . . . . . . . . . Grunt 64 | . . 13 2 . 5 1 19 12 . 9 . . . . 3 . . . . . . . . . . . . . . Brawler 6 | . . 1 1 . 1 . . 2 . 1 . . . . . . . . . . . . . . . . . . . Duelist 9 | . . 1 . . . . 3 5 . . . . . . . . . . . . . . . . . . . . . Protector 1 | . . . . . . . . 1 . . . . . . . . . . . . . . . . . . . . . Researcher 3 | . . . . . . . . . . . . . . . . . . . . . . . . . . . 3 . . Sentry 33 | . . 10 . . . 7 3 3 3 4 . 1 . . . 2 . . . . . . . . . . . . . Specialist 1 | . . . . . . . 1 . . . . . . . . . . . . . . . . . . . . . . Hunter 12 | . . . . . . 2 5 . . . . 3 . . . 2 . . . . . . . . . . . . . Programmer 11 | . . . . . . . 2 . 2 1 . . 1 . . 2 . . . 2 . . . . . . 1 . . Heavy 1 | . . . . . . . . . . . . 1 . . . . . . . . . . . . . . . . . Zionite 8 | . . . . 8 . . . . . . . . . . . . . . . . . . . . . . . . . Master Thief 1 | . . . . . . . . . . . . . . . . . . . . . 1 . . . . . . . . Assembled 4 | . . . . 4 . . . . . . . . . . . . . . . . . . . . . . . . . Best Kill Streak 9 | 2 3 5 3 6 4 5 9 7 4 5 . 2 1 . 3 4 . . 1 2 1 . . . . 3 2 1 . Combat Bots Only 8 | . 3 5 3 4 3 4 8 7 2 5 . 2 1 . 3 3 . . . 2 1 . . . . . 1 . . Max Kills in Single Turn 3 | 1 1 2 1 2 2 1 2 3 1 1 . 1 1 . 2 3 . . 1 1 1 . . . . 1 1 1 . Gunslinging 1 | . . . . . . . 1 . . . . . . . . . . . . . . . . . . . . . . Exploded 2 | . . . . 2 . . . 2 . . . . . . 1 . . . . . . . . . . . . . . Melee 1 | . . . . . . . . 1 1 . . . . . . . . . . 1 1 . . . . . 1 . . Uniques/NPCs Destroyed 4 | . . . . 4 . . . . . . . . . . . . . . . . . . . . . . . . . 8R-AWN (-9/Exiles) EX-HEX (-9/Exiles) EX-DEC (-9/Exiles) EX-BIN (-9/Exiles) Combat | -11 -10 -9 -9 -9 -8 -8 -8 -8 -7 -7 -7 -7 -6 -6 -6 -5 -5 -5 -4 -4 -4 -4 -3 -3 -3 -2 -2 -1 -1 -------- Run | Yrd Mat Mat Min Exi Min Mat Gar Mat Fac Gar Fac DSF Fac Was Fac Fac Was Fac Fac Upp Upp Zhi Pro Res Arm Res Qua Acc Com Hostile Shots Fired 1562 | . 12 144 14 86 4 42 139 62 118 255 . 45 6 9 9 163 2 17 49 58 65 . 36 . 94 46 11 16 60 Missed 573 | . 5 40 2 13 1 10 36 15 54 91 . 16 . 2 3 54 1 8 37 27 28 . 19 . 48 23 4 7 29 Hits 989 | . 7 104 12 73 3 32 103 47 64 164 . 29 6 7 6 109 1 9 12 31 37 . 17 . 46 23 7 9 31 Melee 45 | . . 2 . . . . 15 8 . . . . . 7 . . 1 . . . 9 . . . 3 . . . . Projectile 944 | . 7 102 12 73 3 32 88 39 64 164 . 29 6 . 6 109 . 9 12 31 28 . 17 . 43 23 7 9 31 AOE 1 | . . . . . . . . . . . . . . . . . . . . . . . . . 1 . . . . Critical Strikes 54 | . . 4 . 22 . 2 4 4 1 1 . . . 3 . 5 . . . 2 2 . . . 1 1 . . 2 Actively Blocked 7 | . . . . 1 . . 1 . . . . . . . . 5 . . . . . . . . . . . . . Part Disruptions 3 | . . . . 1 . . . . . . . . . . . 1 . . . . . . . . . . . . 1 Damage Taken 17384 | . 69 1385 132 1259 49 421 1656 907 547 2148 . 469 89 339 374 2128 55 245 193 635 546 . 366 107 1002 650 163 575 875 Core 3319 | . 10 104 . 73 14 24 235 90 89 182 . 101 31 184 231 653 55 67 15 80 369 . 212 . 217 104 . 134 45 Absorbed by Shields 90 | . . . . . . . 41 . . . . . . . . . . . . . . . . . . 49 . . . Redirected to Core 109 | . . . . . . . . . . . . . . . . . . . . . . . . . . . . 109 . Redirected to Shielding 249 | . . 2 . 14 3 16 56 . . . . . . . . . . . . . . . . . 158 . . . . Ignored by Resistances 85 | . . . . . . . 85 . . . . . . . . . . . . . . . . . . . . . . Regen/Repaired (Parts) 181 | . . . . . . . . . . . . . . . . . . . . . . . . . . . . 13 168 Core Remaining (%) 63 | 100 96 . . . 52 . . 36 . . . 46 . . 47 . . 22 . . . . 41 . 83 . 92 . 88 Volleys Fired 675 | 12 5 118 6 77 . 10 86 38 13 83 . 156 9 . 2 43 . 1 5 . 6 . . . . 5 . . . Largest 3 | 2 2 3 3 3 . 1 3 3 2 3 . 2 1 . 1 3 . 2 2 . 1 . . . . 1 . . . Hottest 149 | 60 40 69 69 75 . 30 78 97 56 105 . 100 65 . 75 149 . 66 66 . 94 . . . . 120 . . . Shots Fired 1489 | 24 10 349 18 150 14 53 263 128 43 159 . 165 9 . 4 77 . 2 10 . 6 . . . . 5 . . . Gun 1177 | 24 10 349 18 130 14 53 263 126 43 67 . 9 . . . 53 . 2 10 . 6 . . . . . . . . Cannon 290 | . . . . . . . . . . 92 . 156 9 . 4 24 . . . . . . . . . 5 . . . Launcher 22 | . . . . 20 . . . 2 . . . . . . . . . . . . . . . . . . . . . Special . | . . . . . . . . . . . . . . . . . . . . . . . . . . . . . . Kinetic 1302 | 12 10 349 18 130 14 53 215 82 26 156 . 165 9 . . 51 . 2 10 . . . . . . . . . . Thermal 147 | . . . . . . . 48 44 17 3 . . . . . 24 . . . . 6 . . . . 5 . . . Explosive 22 | . . . . 20 . . . 2 . . . . . . . . . . . . . . . . . . . . . Electromagnetic 18 | 12 . . . . . . . . . . . . . . 4 2 . . . . . . . . . . . . . Robot Hit Streak 30 | 4 5 14 8 23 9 24 30 24 18 19 . 4 4 . 5 7 . . 8 . 3 . . . . . . . . Robot Miss Streak 11 | 4 1 4 3 4 1 2 4 3 4 11 . 2 3 . . 7 . . 1 . 2 . . . . 2 . . . Penetration Max 2 | . . . . . . . 2 2 . . . 1 . . . 1 . . . . . . . . . . . . . Secondary Targets 10 | . . 3 2 . . . 3 2 . . . . . . . . . . . . . . . . . . . . . Max Gunslinging Chain 2 | . . 1 1 . . . 2 1 . . . . . . . . . . . . . . . . . . . . . Autonomous 218 | . . . . . 14 43 96 44 17 4 . . . . . . . . . . . . . . . . . . . Shots Hit Robots 928 | 13 7 199 11 100 13 51 174 107 44 100 . 18 5 . 1 43 . . 8 7 11 . . . 1 6 8 1 . Core Hits 416 | 6 5 72 5 47 10 23 65 53 20 53 . 10 2 . 12 24 . . 2 1 2 . . . . 1 3 . . Critical Kills 24 | . . 2 . . 1 1 11 5 . . . 1 . . . 3 . . . . . . . . . . . . . Critical Parts Destroyed 26 | . . . . 1 . 1 12 8 . 1 . . . . . 3 . . . . . . . . . . . . . Critical Strikes 66 | . . 2 . 2 1 3 23 13 1 7 . 3 . . . 9 . . . . . . . . . . 2 . . Burn 2 | . . . . . . . . . . . . . . . . 2 . . . . . . . . . . . . . Destroy 50 | . . 2 . 1 1 2 23 13 . 1 . 1 . . . 6 . . . . . . . . . . . . . Blast 5 | . . . . . . . . . . 2 . 2 . . . 1 . . . . . . . . . . . . . Sever 7 | . . . . 1 . 1 . . 1 4 . . . . . . . . . . . . . . . . . . . Impale 2 | . . . . . . . . . . . . . . . . . . . . . . . . . . . 2 . . Melee Attacks 162 | . . . . 5 . 6 15 7 19 27 . 5 . . . . . . . 13 13 . . 2 5 14 29 2 . Impact . | . . . . . . . . . . . . . . . . . . . . . . . . . . . . . . Slashing 119 | . . . . 5 . 6 15 7 19 27 . 5 . . . . . . . 13 13 . . . 4 . 3 2 . Piercing 43 | . . . . . . . . . . . . . . . . . . . . . . . . 2 1 14 26 . . Sneak Attacks 20 | . . . . . . 5 . 3 3 . . . . . . . . . . . . . . . 1 5 3 . . Combat Hostiles 1 | . . . . . . . . . . . . . . . . . . . . . . . . . 1 . . . . Follow-up Attacks . | . . . . . . . . . . . . . . . . . . . . . . . . . . . . . . Damage Inflicted 26682 | 149 59 2832 184 2540 500 1679 4480 2831 1406 3792 . 1358 403 . 393 1133 . . 232 394 489 . . . 211 699 793 125 . Guns 15247 | 149 59 2827 184 1579 500 1166 3748 2103 885 909 . 129 . . . 689 . . 232 . 88 . . . . . . . . Cannons 3312 | . . . . . . . . . . 1579 . 855 403 . 31 444 . . . . . . . . . . . . . Explosions 1196 | . . . . 507 . . . 327 . . . . . . 362 . . . . . . . . . . . . . . Melee 6879 | . . . . 454 . 513 732 401 521 1304 . 374 . . . . . . . 394 401 . . . 168 699 793 125 . Ramming 48 | . . 5 . . . . . . . . . . . . . . . . . . . . . . 43 . . . . Kinetic 15205 | 42 59 2827 184 1579 500 1166 2690 994 417 2396 . 984 403 . . 732 . . 232 . . . . . . . . . . Thermal 3335 | . . . . . . . 1058 1109 468 92 . . . . 172 348 . . . . 88 . . . . . . . . Explosive 834 | . . . . 507 . . . 327 . . . . . . . . . . . . . . . . . . . . . Electromagnetic 381 | 107 . . . . . . . . . . . . . . 221 53 . . . . . . . . . . . . . Impact . | . . . . . . . . . . . . . . . . . . . . . . . . . . . . . . Slashing 5729 | . . . . 454 . 513 732 401 521 1304 . 374 . . . . . . . 394 401 . . . 168 . 342 125 . Piercing 1150 | . . . . . . . . . . . . . . . . . . . . . . . . . . 699 451 . . Highest Corruption 15 | . . . . 1 1 . . . . 2 . . . 15 15 5 15 15 . 2 4 4 4 . . . 1 . 2 Average Corruption 3 | . . . . 1 1 . . . . 2 . . . 8 15 4 10 15 . 1 2 4 4 . . . 1 . 1 Corruption Purged . | . . . . . . . . . . . . . . . . . . . . . . . . . . . . . . Corruption Blocked . | . . . . . . . . . . . . . . . . . . . . . . . . . . . . . . Effects 53 | . . . . 8 7 . . . . . . . . 4 9 5 4 9 . 1 2 2 . . . . 2 . . Message Errors 17 | . . . . 3 2 . . . . . . . . . 2 3 . 5 . . . 1 . . . . 1 . . Matter Fused 10 | . . . . 3 1 . . . . . . . . 2 . . 1 1 . . 1 . . . . . 1 . . Heat Flow Errors 5 | . . . . . 1 . . . . . . . . . 2 . . . . 1 1 . . . . . . . . Energy Discharges 6 | . . . . 1 2 . . . . . . . . 1 1 1 . . . . . . . . . . . . . Parts Rejected 1 | . . . . . . . . . . . . . . . 1 . . . . . . . . . . . . . . Parts Fused 1 | . . . . . . . . . . . . . . . . . 1 . . . . . . . . . . . . Data Loss (minor) 4 | . . . . . 1 . . . . . . . . 1 . . 1 1 . . . . . . . . . . . Data Loss (major) 2 | . . . . . . . . . . . . . . . . 1 . . . . . 1 . . . . . . . Misfires 3 | . . . . 1 . . . . . . . . . . 2 . . . . . . . . . . . . . . Alerts 1 | . . . . . . . . . . . . . . . . . . 1 . . . . . . . . . . . Misdirections 3 | . . . . . . . . . . . . . . . 1 . 1 1 . . . . . . . . . . . Overload Shots . | . . . . . . . . . . . . . . . . . . . . . . . . . . . . . . Overflow Damage 1929 | . . . . 22 . 168 166 166 142 158 . 99 99 . 80 11 . . . 68 28 . . . 18 357 242 105 . Projectiles 242 | . . . . . . . . . . 127 . 5 99 . . 11 . . . . . . . . . . . . . Explosions 102 | . . . . 22 . . . . . . . . . . 80 . . . . . . . . . . . . . . Melee 1585 | . . . . . . 168 166 166 142 31 . 94 . . . . . . . 68 28 . . . 18 357 242 105 . Knockbacks 18 | . . . . . . . . . . 11 . 1 2 . . 4 . . . . . . . . . . . . . Impact . | . . . . . . . . . . . . . . . . . . . . . . . . . . . . . . Kinetic 17 | . . . . . . . . . . 10 . 1 2 . . 4 . . . . . . . . . . . . . Secondary 1 | . . . . . . . . . . 1 . . . . . . . . . . . . . . . . . . . Self-Inflicted Damage 407 | . . . . 88 . . . 45 . . . . . . 253 . . . . . . . . . 21 . . . . Shots 7 | . . . . 2 . . . 1 . . . . . . 4 . . . . . . . . . . . . . . Rammed 2 | . . 1 . . . . . . . . . . . . . . . . . . . . . . 1 . . . . Targets Rammed 2 | . . 1 . . . . . . . . . . . . . . . . . . . . . . 1 . . . . Kicked . | . . . . . . . . . . . . . . . . . . . . . . . . . . . . . . Crushed . | . . . . . . . . . . . . . . . . . . . . . . . . . . . . . . Highest Temperature 471 | 40 . 278 100 248 152 3 78 90 36 327 . . . . 171 269 . 6 3 147 406 . 79 . 216 471 157 348 8 Average Temperature 81 | 21 . 76 55 74 83 2 21 31 16 143 . . . . 56 101 . 6 3 61 163 . 36 . 82 181 85 167 6 Received Heat Transfer 3025 | . 9 588 72 . 27 135 456 387 144 462 . 30 . . 54 198 . 72 18 57 97 . . . 111 90 . . 18 Effects 19 | . . 4 . 3 . . . . . . . . . . . . . . . . 4 . . . . 6 . 2 . Shutdowns 2 | . . . . . . . . . . . . . . . . . . . . . 1 . . . . 1 . . . Energy Bleed 6 | . . 1 . . . . . . . . . . . . . . . . . . 2 . . . . 3 . . . Interference 7 | . . 3 . 3 . . . . . . . . . . . . . . . . . . . . . 1 . . . Short Circuit 3 | . . . . . . . . . . . . . . . . . . . . . 1 . . . . . . 2 . Damage (minor) 1 | . . . . . . . . . . . . . . . . . . . . . . . . . . 1 . . . Siege Activations . | . . . . . . . . . . . . . . . . . . . . . . . . . . . . . . Martial Activations . | . . . . . . . . . . . . . . . . . . . . . . . . . . . . . . Shielding Activations . | . . . . . . . . . . . . . . . . . . . . . . . . . . . . . . Robots Disrupted . | . . . . . . . . . . . . . . . . . . . . . . . . . . . . . . Combat Hostiles . | . . . . . . . . . . . . . . . . . . . . . . . . . . . . . . Robots Corrupted . | . . . . . . . . . . . . . . . . . . . . . . . . . . . . . . Combat Hostiles . | . . . . . . . . . . . . . . . . . . . . . . . . . . . . . . Parts Fried 2 | 1 . . . . . . . . . . . . . . 1 . . . . . . . . . . . . . . Impact Corruptions . | . . . . . . . . . . . . . . . . . . . . . . . . . . . . . . Robots Melted . | . . . . . . . . . . . . . . . . . . . . . . . . . . . . . . Combat Hostiles . | . . . . . . . . . . . . . . . . . . . . . . . . . . . . . . Parts Melted 12 | . . . . . . . 2 4 3 . . . . . . 3 . . . . . . . . . . . . . Heat Transferred 4413 | . . . . . . . 1332 1353 592 111 . . . . 100 814 . . . . 111 . . . . . . . . Parts Sabotaged 3 | . . . . . . . . . . . . . . . . . . . . . . . . . 3 . . . . Parts Stolen 1 | . . . . . . . . . . . . . . . . . . . . . 1 . . . . . . . . Parts Stripped . | . . . . . . . . . . . . . . . . . . . . . . . . . . . . . . Power Chain Reactions . | . . . . . . . . . . . . . . . . . . . . . . . . . . . . . . Alert | -11 -10 -9 -9 -9 -8 -8 -8 -8 -7 -7 -7 -7 -6 -6 -6 -5 -5 -5 -4 -4 -4 -4 -3 -3 -3 -2 -2 -1 -1 ------- Run | Yrd Mat Mat Min Exi Min Mat Gar Mat Fac Gar Fac DSF Fac Was Fac Fac Was Fac Fac Upp Upp Zhi Pro Res Arm Res Qua Acc Com Maximum Alert Level 5 | . . 1 . . . 1 5 4 2 5 3 3 2 . . . . . . . . . . . 2 2 1 1 4 Low Security (%) 39 | 100 100 54 100 . 100 97 8 . . . . . . 100 100 100 100 100 100 . . . . 100 58 . . 3 30 Level 1 14 | . . 45 . . . 2 8 . 54 2 . . 17 . . . . . . . . . . . 26 95 100 96 2 Level 2 6 | . . . . . . . 18 . 45 10 . . 82 . . . . . . . . . . . 14 4 . . 7 Level 3 26 | . . . . . . . 29 49 . 10 100 100 . . . . . . . . . . . . . . . . 22 Level 4 9 | . . . . . . . 23 50 . 43 . . . . . . . . . . . . . . . . . . 37 Level 5 4 | . . . . . . . 11 . . 32 . . . . . . . . . . . . . . . . . . . High Security . | . . . . . . . . . . . . . . . . . . . . . . . . . . . . . . Max Security . | . . . . . . . . . . . . . . . . . . . . . . . . . . . . . . Peak Influence 2035 | 10 60 271 79 . 71 211 1812 1243 560 2035 1068 1008 529 128 179 129 32 15 66 . . . . 115 478 416 389 292 1169 Initial 1068 | . . . 79 . . 4 89 883 560 300 1068 751 529 128 . 77 32 1 7 . . . . 70 45 248 211 232 84 Average 540 | 1 14 180 14 . 14 79 908 1085 404 1351 1068 945 450 74 136 47 20 3 19 . . . . 93 187 300 272 233 447 Influence Increases 10526 | 15 70 856 70 . 155 551 1813 774 221 1835 5 287 68 . 259 363 . 46 95 230 60 . 135 47 558 248 278 80 1407 Destroy 0b10 Robot/C 3620 | . 60 560 60 . 120 280 840 500 100 660 . 120 20 . 60 120 . . . 40 . . . . . . 80 . . Destroy 0b10 Robot/NC 325 | 15 . 70 . . 10 35 30 45 25 5 . 20 10 . . 25 . . 5 . . . . . . 25 . 5 . Destroy Leader 666 | . 10 186 10 . 20 108 20 114 42 50 . 30 10 . 10 44 . . 2 10 . . . . . . . . . Allied During Kill 106 | . . . . . . . 18 12 . 74 . 2 . . . . . . . . . . . . . . . . . Successful Hack 240 | . . 19 . . . . . 5 30 14 5 . 21 . 5 . . 8 16 . . . . 45 14 31 . . 27 Disable Machine 690 | . . 15 . . . 75 90 30 15 105 . 30 . . 105 30 . . . . . . . . 15 45 120 15 . Anti-Garrison Action 1200 | . . . . . . . 650 . . 550 . . . . . . . . . . . . . . . . . . . Destroy Structure 574 | . . 6 . . 5 53 60 23 9 227 . 85 7 . 19 24 . 8 12 . . . . 2 4 27 3 . . Partial Spotted 105 | . . . . . . . . 15 . . . . . . . . . . . . . . . . 90 . . . . Lose Combat Pursuer 3000 | . . . . . . . 105 30 . 150 . . . . 60 120 . 30 60 180 60 . 135 . 435 120 75 60 1380 Influence Decreases 9115 | 15 70 651 275 . 142 426 139 1355 1023 229 967 352 709 367 100 429 91 33 54 161 95 90 30 65 172 345 265 337 128 Entered New Map 4880 | . . . 126 . . 9 49 929 671 129 967 322 479 239 . 82 61 1 8 21 25 90 . 35 42 225 165 157 48 Time Decay 3437 | 15 70 641 149 . 142 417 . 386 342 . . . 230 50 90 247 20 32 46 100 50 . 30 30 70 80 100 60 40 Lost Part 558 | . . 10 . . . . 70 20 10 40 . 10 . 58 10 100 10 . . 40 20 . . . 60 40 . 20 40 Lost Ally 240 | . . . . . . . 20 20 . 60 . 20 . 20 . . . . . . . . . . . . . 100 . Squads Dispatched 40 | . . 2 . . . . . 7 5 . 1 . 1 . 1 8 . 1 2 . . . . 1 3 3 3 1 1 Investigation 13 | . . 2 . . . . . 1 1 . 1 . . . 1 3 . 1 . . . . . . . 2 . 1 . Extermination 7 | . . . . . . . . . 2 . . . 1 . . 2 . . . . . . . . . 1 1 . . Reinforcement 17 | . . . . . . . . 4 1 . . . . . . 3 . . 2 . . . . 1 3 . 2 . 1 Assault 2 | . . . . . . . . 2 . . . . . . . . . . . . . . . . . . . . . Garrison 1 | . . . . . . . . . 1 . . . . . . . . . . . . . . . . . . . . Intercept . | . . . . . . . . . . . . . . . . . . . . . . . . . . . . . . Searches Triggered . | . . . . . . . . . . . . . . . . . . . . . . . . . . . . . . Construction Impeded . | . . . . . . . . . . . . . . . . . . . . . . . . . . . . . . Haulers Reinforced 2 | . . . . . . . . . . . . . . . . 1 . . 1 . . . . . . . . . . Active Scanning Responses . | . . . . . . . . . . . . . . . . . . . . . . . . . . . . . . Cargo Convoy Interrupts . | . . . . . . . . . . . . . . . . . . . . . . . . . . . . . . Stealth | -11 -10 -9 -9 -9 -8 -8 -8 -8 -7 -7 -7 -7 -6 -6 -6 -5 -5 -5 -4 -4 -4 -4 -3 -3 -3 -2 -2 -1 -1 --------- Run | Yrd Mat Mat Min Exi Min Mat Gar Mat Fac Gar Fac DSF Fac Was Fac Fac Was Fac Fac Upp Upp Zhi Pro Res Arm Res Qua Acc Com Distress Signals 19 | . . 3 . . . . 2 1 1 . . . . . . 3 . . 2 . . . . . 4 . . . 3 Communications Jammed . | . . . . . . . . . . . . . . . . . . . . . . . . . . . . . . Distress Signals . | . . . . . . . . . . . . . . . . . . . . . . . . . . . . . . Times Spotted 535 | . 7 48 3 18 6 17 48 43 7 39 . 7 2 6 11 24 6 6 16 14 14 . 15 3 48 16 9 12 90 Peak Tracking Total 79 | . 3 7 3 9 3 4 7 6 2 8 . 2 1 6 5 8 6 5 12 8 5 . 8 2 30 9 7 6 79 Tactical Retreats 49 | . . . . 2 . . 6 2 . 8 . . . . 2 2 . 2 1 5 1 . 2 . 5 2 3 1 5 Traps | -11 -10 -9 -9 -9 -8 -8 -8 -8 -7 -7 -7 -7 -6 -6 -6 -5 -5 -5 -4 -4 -4 -4 -3 -3 -3 -2 -2 -1 -1 ------- Run | Yrd Mat Mat Min Exi Min Mat Gar Mat Fac Gar Fac DSF Fac Was Fac Fac Was Fac Fac Upp Upp Zhi Pro Res Arm Res Qua Acc Com Traps Triggered 31 | . . 2 . . . . 11 . . 4 . 4 1 . 1 3 . 1 . . . . . 1 1 1 . . 1 Indirectly 1 | . . . . . . . . . . . . . . . 1 . . . . . . . . . . . . . . Trap Hack Attempts . | . . . . . . . . . . . . . . . . . . . . . . . . . . . . . . Triggered . | . . . . . . . . . . . . . . . . . . . . . . . . . . . . . . Disarmed . | . . . . . . . . . . . . . . . . . . . . . . . . . . . . . . Reprogrammed 1 | . . 1 . . . . . . . . . . . . . . . . . . . . . . . . . . . Reused . | . . . . . . . . . . . . . . . . . . . . . . . . . . . . . . Traps Extracted . | . . . . . . . . . . . . . . . . . . . . . . . . . . . . . . Installed . | . . . . . . . . . . . . . . . . . . . . . . . . . . . . . . Triggered . | . . . . . . . . . . . . . . . . . . . . . . . . . . . . . . Machines | -11 -10 -9 -9 -9 -8 -8 -8 -8 -7 -7 -7 -7 -6 -6 -6 -5 -5 -5 -4 -4 -4 -4 -3 -3 -3 -2 -2 -1 -1 ---------- Run | Yrd Mat Mat Min Exi Min Mat Gar Mat Fac Gar Fac DSF Fac Was Fac Fac Was Fac Fac Upp Upp Zhi Pro Res Arm Res Qua Acc Com Machines Disabled 74 | . . 1 . 7 . 5 15 2 1 17 . 2 . . 7 2 . . . 1 . . . . 1 3 9 1 . Max in Single Turn 3 | . . 1 . 2 . 3 2 1 1 2 . 1 . . 3 1 . . . 1 . . . . 1 1 1 1 . Garrison Access 2 | . . . . . . . . . . . . . . . . . . . 2 . . . . . . . . . . Garrison Relay 10 | . . . . . . . 6 . . 4 . . . . . . . . . . . . . . . . . . . Phase Generator 2 | . . . . . . . 1 . . 1 . . . . . . . . . . . . . . . . . . . Machines Repaired . | . . . . . . . . . . . . . . . . . . . . . . . . . . . . . . Machines Dismantled . | . . . . . . . . . . . . . . . . . . . . . . . . . . . . . . Machines Sabotaged . | . . . . . . . . . . . . . . . . . . . . . . . . . . . . . . Overloaded Fab Kills . | . . . . . . . . . . . . . . . . . . . . . . . . . . . . . . Hacking | -11 -10 -9 -9 -9 -8 -8 -8 -8 -7 -7 -7 -7 -6 -6 -6 -5 -5 -5 -4 -4 -4 -4 -3 -3 -3 -2 -2 -1 -1 --------- Run | Yrd Mat Mat Min Exi Min Mat Gar Mat Fac Gar Fac DSF Fac Was Fac Fac Was Fac Fac Upp Upp Zhi Pro Res Arm Res Qua Acc Com Machines Accessed 78 | . . 9 1 4 . 8 3 3 2 2 1 . 3 . 4 3 . 2 4 2 . 4 . 5 3 6 4 3 2 Terminals 53 | . . 8 . . . 7 3 2 1 2 1 . 3 . 2 3 . 2 2 . . . . 3 2 4 3 3 2 Fabricators 3 | . . . . . . . . . . . . . . . 1 . . . . . . . . 1 1 . . . . Repair Stations 1 | . . . . . . . . . . . . . . . . . . . . . . . . . . 1 . . . Recycling Units 4 | . . 1 . . . . . 1 . . . . . . 1 . . . . . . . . 1 . . . . . Scanalyzers . | . . . . . . . . . . . . . . . . . . . . . . . . . . . . . . Garrison Access 6 | . . . . . . 1 . . 1 . . . . . . . . . 2 . . . . . . 1 1 . . Total Hacks 192 | . . 25 1 6 . 18 8 9 7 3 3 . 6 . 10 8 . 7 7 2 . 17 . 9 7 17 7 9 6 Successful 85 | . . 14 1 6 . 10 1 5 3 2 1 . 2 . 2 1 . 1 3 2 . 17 . 4 1 6 2 . 1 Failed 107 | . . 11 . . . 8 7 4 4 1 2 . 4 . 8 7 . 6 4 . . . . 5 6 11 5 9 5 Catastrophic 24 | . . 2 . . . 1 1 . 3 . . . . . 1 . . 1 . . . . . 1 . 5 3 4 2 Database Lockouts . | . . . . . . . . . . . . . . . . . . . . . . . . . . . . . . Manual 63 | . . 14 . 1 . 15 . 7 4 . . . 4 . 3 . . . . . . . . 4 2 4 3 1 1 Terminals 140 | . . 24 . . . 17 8 7 4 3 3 . 6 . 8 8 . 7 3 . . . . 7 5 10 5 9 6 Fabricators 4 | . . . . . . . . . . . . . . . 1 . . . . . . . . 1 2 . . . . Repair Stations 5 | . . . . . . . . . . . . . . . . . . . . . . . . . . 5 . . . Recycling Units 5 | . . 1 . . . . . 2 . . . . . . 1 . . . . . . . . 1 . . . . . Scanalyzers . | . . . . . . . . . . . . . . . . . . . . . . . . . . . . . . Garrison Access 12 | . . . . . . 1 . . 3 . . . . . . . . . 4 . . . . . . 2 2 . . Terminal Hacks 51 | . . 5 1 6 . 1 1 1 . 2 1 . 1 . 1 1 . 1 1 2 . 17 . 1 . 5 2 . 1 Record 14 | . . . . 5 . . . . . . . . . . . . . . . 1 . 5 . . . 1 2 . . Part Schematic 4 | . . . . . . . . . . . . . . . . . . . . . . 4 . . . . . . . Robot Analysis 4 | . . . . . . . . . . . . . . . . . . . . . . 4 . . . . . . . Prototype ID Bank 5 | . . 1 . . . . . . . . . . . . . . . . . . . 4 . . . . . . . Open Door 4 | . . . 1 . . . . . . 1 . . . . . . . . . 1 . . . . . 1 . . . Open DSF 2 | . . . . . . . . . . . 1 . . . . 1 . . . . . . . . . . . . . Level Access Points 2 | . . . . . . . . . . . . . . . . . . 1 . . . . . . . . . . 1 Branch Access Points 2 | . . . . . . . . . . . . . . . . . . . 1 . . . . . . 1 . . . Emergency Access Points 2 | . . 1 . . . . . . . 1 . . . . . . . . . . . . . . . . . . . Reprogram Traps 1 | . . 1 . . . . . . . . . . . . . . . . . . . . . . . . . . . Dispatch Records 1 | . . 1 . . . . . . . . . . . . . . . . . . . . . . . . . . . Hauler Manifests 1 | . . . . . . 1 . . . . . . . . . . . . . . . . . . . . . . . Registered Components 2 | . . 1 . . . . . . . . . . . . . . . . . . . . . . . 1 . . . Zone Layout 5 | . . . . . . . . 1 . . . . 1 . 1 . . . . . . . . 1 . 1 . . . Patrol Navigation 1 | . . . . . . . 1 . . . . . . . . . . . . . . . . . . . . . . Proto ID Catalog 1 | . . . . 1 . . . . . . . . . . . . . . . . . . . . . . . . . Fabricator Hacks 1 | . . . . . . . . . . . . . . . . . . . . . . . . 1 . . . . . Build 1 | . . . . . . . . . . . . . . . . . . . . . . . . 1 . . . . . Repair Station Hacks 1 | . . . . . . . . . . . . . . . . . . . . . . . . . . 1 . . . Refit 1 | . . . . . . . . . . . . . . . . . . . . . . . . . . 1 . . . Recycling Unit Hacks 3 | . . 1 . . . . . 1 . . . . . . . . . . . . . . . 1 . . . . . Retrieve Components 3 | . . 1 . . . . . 1 . . . . . . . . . . . . . . . 1 . . . . . Scanalyzer . | . . . . . . . . . . . . . . . . . . . . . . . . . . . . . . Garrison Access Hacks 4 | . . . . . . 1 . . 1 . . . . . . . . . 2 . . . . . . . . . . Unlock Access 2 | . . . . . . 1 . . 1 . . . . . . . . . . . . . . . . . . . . Seal Access 2 | . . . . . . . . . . . . . . . . . . . 2 . . . . . . . . . . Unauthorized Hacks 25 | . . 8 . . . 8 . 3 2 . . . 1 . 1 . . . . . . . . 1 1 . . . . Terminals 25 | . . 8 . . . 8 . 3 2 . . . 1 . 1 . . . . . . . . 1 1 . . . . Botnet 11 | . . 2 . . . 3 . 2 1 . . . 1 . . . . . . . . . . 1 1 . . . . Skim 14 | . . 6 . . . 5 . 1 1 . . . . . 1 . . . . . . . . . . . . . . Fabricators . | . . . . . . . . . . . . . . . . . . . . . . . . . . . . . . Repair Stations . | . . . . . . . . . . . . . . . . . . . . . . . . . . . . . . Recycling Units . | . . . . . . . . . . . . . . . . . . . . . . . . . . . . . . Scanalyzers . | . . . . . . . . . . . . . . . . . . . . . . . . . . . . . . Garrison Access . | . . . . . . . . . . . . . . . . . . . . . . . . . . . . . . Data Cores Recovered 3 | . . . . . . . . 1 . . . . 2 . . . . . . . . . . . . . . . . Used 1 | . . . . . . . . 1 . . . . . . . . . . . . . . . . . . . . . Hacking Detections 54 | . . 6 . . . 6 3 3 2 . 1 . 3 . 4 3 . 2 1 . . . . 4 3 5 3 3 2 Full Trace Events 13 | . . 1 . . . . 2 . 1 . 1 . . . 1 2 . 1 . . . . . . . 2 . 1 1 Feedback Events . | . . . . . . . . . . . . . . . . . . . . . . . . . . . . . . Feedback Blocked . | . . . . . . . . . . . . . . . . . . . . . . . . . . . . . . Robot Schematics Acquired . | . . . . . . . . . . . . . . . . . . . . . . . . . . . . . . Robots Built . | . . . . . . . . . . . . . . . . . . . . . . . . . . . . . . Authchips . | . . . . . . . . . . . . . . . . . . . . . . . . . . . . . . Time 187 | . . . . . . . . . . . . . . . . . . . . . . . . 187 . . . . . Total Robot Build Rating . | . . . . . . . . . . . . . . . . . . . . . . . . . . . . . . Part Schematics Acquired 14 | . . . . . . . . . . . . . . . . . . . . . . 4 . . . . 10 . . Parts Built . | . . . . . . . . . . . . . . . . . . . . . . . . . . . . . . Authchips . | . . . . . . . . . . . . . . . . . . . . . . . . . . . . . . Time . | . . . . . . . . . . . . . . . . . . . . . . . . . . . . . . Total Part Build Rating . | . . . . . . . . . . . . . . . . . . . . . . . . . . . . . . Parts Repaired . | . . . . . . . . . . . . . . . . . . . . . . . . . . . . . . Time . | . . . . . . . . . . . . . . . . . . . . . . . . . . . . . . Parts Recycled . | . . . . . . . . . . . . . . . . . . . . . . . . . . . . . . Recycled Matter . | . . . . . . . . . . . . . . . . . . . . . . . . . . . . . . Retrieved Matter . | . . . . . . . . . . . . . . . . . . . . . . . . . . . . . . Retrieved Components 12 | . . 1 . . . . . 9 . . . . . . . . . . . . . . . 2 . . . . . Parts Scanalyzed . | . . . . . . . . . . . . . . . . . . . . . . . . . . . . . . Part Schematics Acquired . | . . . . . . . . . . . . . . . . . . . . . . . . . . . . . . Parts Damaged . | . . . . . . . . . . . . . . . . . . . . . . . . . . . . . . Bothacking | -11 -10 -9 -9 -9 -8 -8 -8 -8 -7 -7 -7 -7 -6 -6 -6 -5 -5 -5 -4 -4 -4 -4 -3 -3 -3 -2 -2 -1 -1 ------------ Run | Yrd Mat Mat Min Exi Min Mat Gar Mat Fac Gar Fac DSF Fac Was Fac Fac Was Fac Fac Upp Upp Zhi Pro Res Arm Res Qua Acc Com Used RIF Installer . | . . . . . . . . . . . . . . . . . . . . . . . . . . . . . . Robots Hacked . | . . . . . . . . . . . . . . . . . . . . . . . . . . . . . . Non-combat . | . . . . . . . . . . . . . . . . . . . . . . . . . . . . . . Combat . | . . . . . . . . . . . . . . . . . . . . . . . . . . . . . . Robot Hacks Applied . | . . . . . . . . . . . . . . . . . . . . . . . . . . . . . . Relay Couplers Released 43 | . . . . . . . 26 . . 17 . . . . . . . . . . . . . . . . . . . Machine Destruction 43 | . . . . . . . 26 . . 17 . . . . . . . . . . . . . . . . . . . Fabnet Peak Effective % . | . . . . . . . . . . . . . . . . . . . . . . . . . . . . . . Robots Rewired 2 | . . . . . . . . . . 2 . . . . . . . . . . . . . . . . . . . Allies Hacked . | . . . . . . . . . . . . . . . . . . . . . . . . . . . . . . Hacks Repelled . | . . . . . . . . . . . . . . . . . . . . . . . . . . . . . . Allies | -11 -10 -9 -9 -9 -8 -8 -8 -8 -7 -7 -7 -7 -6 -6 -6 -5 -5 -5 -4 -4 -4 -4 -3 -3 -3 -2 -2 -1 -1 -------- Run | Yrd Mat Mat Min Exi Min Mat Gar Mat Fac Gar Fac DSF Fac Was Fac Fac Was Fac Fac Upp Upp Zhi Pro Res Arm Res Qua Acc Com Total Allies 7 | . . . . . . . 2 . . 4 . . . 1 . . . . . . . . . . . . . . . Largest Group 2 | . . . . . . . 2 1 . 2 1 1 . 1 . . . . . . . . . . . . . . . Highest-Rated Group 190 | . . . . . . . 62 31 . 190 20 20 . 31 . . . . . . . . . . . . . . . Highest-Rated Ally 95 | . . . . . . . 31 31 . 95 20 20 . 31 . . . . . . . . . . . . . . . Initial Warlord ECA Mod 476 | . . . . . . . . 13 12 12 26 26 25 25 25 24 24 24 23 23 23 23 22 22 22 21 21 20 20 Total Orders . | . . . . . . . . . . . . . . . . . . . . . . . . . . . . . . Ally Attacks 100 | . . . . . . . 18 15 . 47 . 4 . 1 . . . . . . . . . . . . . 15 . Total Damage 2662 | . . . . . . . 270 184 . 2049 . 138 . 21 . . . . . . . . . . . . . . . Kills 19 | . . . . . . . 4 3 . 11 . 1 . . . . . . . . . . . . . . . . . Allies Corrupted . | . . . . . . . . . . . . . . . . . . . . . . . . . . . . . . Allies Melted . | . . . . . . . . . . . . . . . . . . . . . . . . . . . . . . Intel | -11 -10 -9 -9 -9 -8 -8 -8 -8 -7 -7 -7 -7 -6 -6 -6 -5 -5 -5 -4 -4 -4 -4 -3 -3 -3 -2 -2 -1 -1 ------- Run | Yrd Mat Mat Min Exi Min Mat Gar Mat Fac Gar Fac DSF Fac Was Fac Fac Was Fac Fac Upp Upp Zhi Pro Res Arm Res Qua Acc Com Active Infowar (turns) 4271 | 12 285 1691 . . . . . . 775 243 . . . . . 181 . . . . 77 73 61 74 158 161 213 131 136 Optics 1084 | . . . . . . . . . . . . . . . . . . . . . 77 73 61 74 158 161 213 131 136 Sensors 1579 | . . . . . . . . . 775 243 . . . . . 181 . . . . . . . . . 49 208 . 123 Seismic 1988 | 12 285 1691 . . . . . . . . . . . . . . . . . . . . . . . . . . . Robot Analysis Total 4 | . . . . . . . . . . . . . . . . . . . . . . 4 . . . . . . . Derelict Logs Recovered 2 | . . . 1 . . . . . . . . . . . . . . . . . 1 . . . . . . . . Drone Launches 16 | . . . . . . . . . . . . . . . . . . . . . . . . . . . . 16 . Drone Recoveries . | . . . . . . . . . . . . . . . . . . . . . . . . . . . . . . Exploration | -11 -10 -9 -9 -9 -8 -8 -8 -8 -7 -7 -7 -7 -6 -6 -6 -5 -5 -5 -4 -4 -4 -4 -3 -3 -3 -2 -2 -1 -1 ------------- Run | Yrd Mat Mat Min Exi Min Mat Gar Mat Fac Gar Fac DSF Fac Was Fac Fac Was Fac Fac Upp Upp Zhi Pro Res Arm Res Qua Acc Com Turns Passed 23313 | 114 285 3061 872 3415 924 2147 1845 909 775 1883 6 3920 484 128 217 646 48 178 125 207 117 73 61 74 158 161 213 131 136 Spaces Moved 14283 | 53 167 1421 350 1293 369 780 1047 516 457 945 4 1694 267 85 295 504 95 291 258 554 155 143 230 217 484 451 521 241 396 Core 545 | 18 . . . . . . . 1 . . . . . 23 295 5 18 . . . 98 87 . . . . . . . Treads 5131 | 35 167 1421 350 1293 369 634 . . . . . 533 267 62 . . . . . . . . . . . . . . . Legs 1968 | . . . . . . . . . . 798 4 1161 . . . 5 . . . . . . . . . . . . . Wheels 2564 | . . . . . . 146 1047 515 457 147 . . . . . 252 . . . . . . . . . . . . . Hover 587 | . . . . . . . . . . . . . . . . 242 6 291 48 . . . . . . . . . . Flight 3488 | . . . . . . . . . . . . . . . . . 71 . 210 554 57 56 230 217 484 451 521 241 396 Fastest Speed 6 | 50 160 160 240 240 240 130 115 115 110 100 183 183 170 50 50 50 40 46 27 27 30 29 20 29 6 14 13 18 25 Average Speed 136 | 122 160 179 240 240 240 219 137 131 126 153 183 204 170 138 66 92 43 55 38 28 42 41 25 29 20 16 17 38 25 Slowest Speed 1300 | 160 160 240 240 240 240 240 145 1300 130 260 183 250 170 250 150 190 60 60 350 32 50 50 29 29 99 23 20 98 30 Overloaded Moves 182 | . . . . . . . . . . . . . . . . . . . . . . . 101 . 14 . 67 . . Propulsion Burnouts . | . . . . . . . . . . . . . . . . . . . . . . . . . . . . . . Robots Hopped 36 | . . . . . . . . . . . . . . . . . . . 8 . . . . 2 12 10 2 . 2 Potential Cave-ins 28 | . . . . . . . . . . . . . . . . . . . . . . . . . . . 11 . 17 Cave-ins Triggered 1 | . . . . . . . . . . 1 . . . . . . . . . . . . . . . . . . . Exploration Rate (%) 46 | 4 25 94 64 89 74 57 96 44 12 97 . 100 8 77 7 16 75 8 12 69 47 61 58 15 34 19 54 11 28 Regions Visited 29 Branch Regions 10 Pre-discovered Areas 8 | . . 3 . 1 . . . . . . . . . . . . . . . 1 . 3 . . . . . . . Known Exits Taken 12 | . . . . . 1 1 . . 1 . 1 . . . 1 . . 1 1 1 . . . 1 . 1 1 1 . Unknown Exits Taken 10 | 1 1 1 1 1 . . . 1 . . . . . . . . . . . . 1 1 1 . 1 . . . . Scrap Searched 9 | . . . 1 . 2 . . . . . . . . . . . . . . 2 2 . 2 . . . . . . Spaces Dug 61 | . . . . . . . . . 8 . . 35 . . . . . 4 . . . . . 1 2 8 3 . . Terrain Destroyed 628 | . . . . 36 10 57 60 25 9 233 . 131 6 . 20 13 . 4 6 . 3 . . 1 2 9 3 . . Melee 19 | . . . . . . . . . 8 . . 1 . . . . . . . . . . . 1 2 4 3 . . Projectile 227 | . . . . . 10 16 6 6 1 21 . 130 6 . . 13 . 4 6 . 3 . . . . 5 . . . AOE 379 | . . . . 36 . 41 52 18 . 212 . . . . 20 . . . . . . . . . . . . . . Terrain Rammed . | . . . . . . . . . . . . . . . . . . . . . . . . . . . . . . Walls Destroyed . | . . . . . . . . . . . . . . . . . . . . . . . . . . . . . . Machines Disabled . | . . . . . . . . . . . . . . . . . . . . . . . . . . . . . . Actions | -11 -10 -9 -9 -9 -8 -8 -8 -8 -7 -7 -7 -7 -6 -6 -6 -5 -5 -5 -4 -4 -4 -4 -3 -3 -3 -2 -2 -1 -1 --------- Run | Yrd Mat Mat Min Exi Min Mat Gar Mat Fac Gar Fac DSF Fac Was Fac Fac Was Fac Fac Upp Upp Zhi Pro Res Arm Res Qua Acc Com Total 16805 | 80 176 1711 371 1526 408 1207 1304 660 609 1190 3 1915 285 95 310 616 102 304 266 584 181 153 232 221 519 496 581 273 427 Wait 916 | . . 80 9 38 37 366 75 80 89 29 . . 4 . 1 21 . . . 2 . . 1 1 1 15 13 26 28 Move 14191 | 52 166 1420 349 1292 368 780 1046 515 457 944 3 1693 267 84 294 504 94 290 242 553 154 142 229 212 461 432 516 240 392 Hop 31 | . . . . . . . . . . . . . . . . . . . 7 . . . . 2 11 8 2 . 1 Pick Up 201 | 9 4 29 3 43 1 10 9 3 8 13 . 20 2 2 3 10 3 4 1 3 1 2 . . 5 6 5 . 2 Fast Attach 108 | 1 . 10 . 2 . 5 5 6 5 3 . . . 3 7 14 . 5 5 5 1 6 . 1 13 2 6 3 . Attach 101 | 6 . 8 . 13 . 5 9 3 5 9 . 6 2 1 1 8 3 2 . 3 1 1 1 1 4 5 2 . 2 Detach 18 | . . . . 1 . 2 2 . 2 . . . . 1 . 4 1 . 1 . 1 . 1 1 1 . . . . Swap 48 | . 1 12 . 15 1 4 . . 2 5 . 7 . . . . . . . . . . . . 1 . . . . Drop 209 | . . 33 4 40 1 19 5 8 9 10 . 18 1 4 2 12 1 2 5 5 4 2 . 1 6 4 9 2 2 Fire 675 | 12 5 118 6 77 . 10 86 38 13 83 . 156 9 . 2 43 . 1 5 . 6 . . . . 5 . . . Melee 161 | . . . . 5 . 6 15 7 19 27 . 5 . . . . . . . 13 13 . . 2 5 14 28 2 . Ram . | . . . . . . . . . . . . . . . . . . . . . . . . . . . . . . Kick . | . . . . . . . . . . . . . . . . . . . . . . . . . . . . . . Crush 1 | . . 1 . . . . . . . . . . . . . . . . . . . . . . . . . . . Escape Stasis 101 | . . . . . . . 52 . . 23 . 10 . . . . . . . . . . . . 11 5 . . . Rewire 44 | . . . . . . . . . . 44 . . . . . . . . . . . . . . . . . . . Trap . | . . . . . . . . . . . . . . . . . . . . . . . . . . . . . . Miscellaneous . | . . . . . . . . . . . . . . . . . . . . . . . . . . . . . . Route ------- -11/Scrapyard -10/Materials -9/Materials (discovered 5 exits: *Mat x3 / *Min / *Sto) -9/Mines (discovered 3 exits: Mat x2 / *Exi) -9/Exiles -8/Mines -8/Materials (discovered 3 exits: *Fac x2 / Gar) -8/Garrison (discovered 3 exits: *Mat x3) -8/Materials -7/Factory (discovered 6 exits: Fac x3 / Low x2 / Gar) -7/Garrison (discovered 3 exits: *Fac x3) -7/Factory -7/DSF -6/Factory -6/Waste -6/Factory -5/Factory -5/Waste -5/Factory (discovered 4 exits: *Fac x4) -4/Factory (discovered 2 exits: *Upp x2) -4/Upper Caves -4/Upper Caves -4/Zhirov -3/Proximity Caves -3/Research -3/Armory -2/Research (discovered 2 exits: *Qua x2) -2/Quarantine -1/Access -1/Command (discovered 2 exits: *Sur x2) Tau Ceti IV Orbit History --------- Turn | Location | Event 2 | -11/Scrapyard | Met Revision 17 6 | -11/Scrapyard | Discovered new exit (range 16) 115 | -11/Scrapyard | Entered Materials 271 | -10/Materials | Discovered new exit (range 12) 307 | -10/Materials | Build established: Mutant 400 | -10/Materials | Entered another Materials area 400 | -9/Materials | Evolved 2 slots: Utility x1, Weapon x1 688 | -9/Materials | Build established: Tank 982 | -9/Materials | Discovered new exit (range 13) 1039 | -9/Materials | Discovered new exit (range 11) 1207 | -9/Materials | Discovered new exit (range 15) 1396 | -9/Materials | Build established: Scavenger-Tank 1400 | -9/Materials | Identified exit to Materials 1477 | -9/Materials | Learned location of Mines (-8) 1544 | -9/Materials | Identified exit to Storage 3461 | -9/Materials | Entered Mines 3466 | -9/Mines | Learned Materials stockpile data 3642 | -9/Mines | Found the Drone Emporium 3657 | -9/Mines | Found Prototype Device 4323 | -9/Mines | Deemed a non-threat by the Exiles lab entrance 4323 | -9/Mines | Discovered new exit (range 5) 4333 | -9/Mines | Entered Exiles 4393 | -9/Exiles | Met 8R-AWN 4427 | -9/Exiles | Met EX-HEX 4575 | -9/Exiles | Met EX-DEC 4613 | -9/Exiles | Learned location of Zion (-6) 5098 | -9/Exiles | Met EX-BIN 5124 | -9/Exiles | Aligned with FarCom system 5127 | -9/Exiles | Given EX-Vault access code 5182 | -9/Exiles | Opened EX-Vault 5195 | -9/Exiles | Found Longsword +1 5246 | -9/Exiles | Warned to stay clear of 0b10 Research branches 5613 | -9/Exiles | Found AWS/Thermal 5629 | -9/Exiles | Found AWS/Gauss 5922 | -9/Exiles | Attacked by the Exiles 6080 | -9/Exiles | Destroyed 8R-AWN 6097 | -9/Exiles | Lost 7 parts (2n1u4w) 6099 | -9/Exiles | Found Prototype Ballistic Gun 6105 | -9/Exiles | Found Prototype Device 6110 | -9/Exiles | Found Prototype Protection 6295 | -9/Exiles | Identified Bomb Drone Bay 6327 | -9/Exiles | Build established: Tank 6485 | -9/Exiles | Destroyed EX-HEX 6532 | -9/Exiles | Destroyed EX-DEC 6580 | -9/Exiles | Destroyed EX-BIN 6771 | -9/Exiles | Found Deploy-a-Sentry 6796 | -9/Exiles | Identified AS-neutralizer No. 17b 6890 | -9/Exiles | Found Prototype Device 7051 | -9/Exiles | Build established: Mutant 7160 | -9/Exiles | Identified 8R-AWN's Boregun 7193 | -9/Exiles | Discovered new exit (range 14) 7748 | -9/Exiles | Stole four prototypes: Longsword +1, AWS/Gauss, AWS/Thermal, Deploy-a-Sentry 7748 | -9/Exiles | Entered Mines 8641 | -8/Mines | Discovered exit to Materials (range 7) 8672 | -8/Mines | Entered Materials 8672 | -8/Materials | Evolved 2 slots: Utility x2 9071 | -8/Materials | Identified 8R-AWN's Armor/EX 9360 | -8/Materials | Discovered new exit (range 7) 10294 | -8/Materials | Learned location of 2 exits from Factory 10372 | -8/Materials | Learned Storage emergency access door positions 10400 | -8/Materials | Discovered new exit (range 4) 10492 | -8/Materials | Learned 8 Factory zone layouts 10538 | -8/Materials | Learned 4 Recycling zone layouts 10576 | -8/Materials | Learned Factory trap positions 10605 | -8/Materials | Learned Factory emergency access door positions 10643 | -8/Materials | Learned location of 2 exits from Lower Caves 10745 | -8/Materials | Learned Storage terminal intel 10819 | -8/Materials | Identified exit to Garrison 10819 | -8/Materials | Entered Garrison 10931 | -8/Garrison | Triggered checkpoint 11045 | -8/Garrison | Garrison Relay disabled 11062 | -8/Garrison | Garrison Relay disabled 11135 | -8/Garrison | Phase Generator disabled 11248 | -8/Garrison | Triggered checkpoint 11277 | -8/Garrison | AWS/Gauss suddenly broke down 11338 | -8/Garrison | Destroyed 8 combat bots 11528 | -8/Garrison | Discovered new exit (range 13) 11653 | -8/Garrison | Triggered checkpoint 11668 | -8/Garrison | Triggered checkpoint 11723 | -8/Garrison | Garrison Relay disabled 11734 | -8/Garrison | Build established: Scavenger-Tank 11816 | -8/Garrison | Triggered checkpoint 11953 | -8/Garrison | Discovered new exit (range 12) 12037 | -8/Garrison | Triggered checkpoint 12084 | -8/Garrison | Garrison Relay disabled 12235 | -8/Garrison | Discovered new exit (range 13) 12292 | -8/Garrison | Lost 3 parts (1u2w) 12323 | -8/Garrison | Rescued a captive Derelict 12329 | -8/Garrison | Rescued a captive Derelict 12418 | -8/Garrison | Garrison Relay disabled 12496 | -8/Garrison | Garrison Relay disabled 12664 | -8/Garrison | Entered Materials 12664 | -8/Materials | Accompanied by 1 ally 13064 | -8/Materials | First assault squad dispatched 13112 | -8/Materials | Build established: Gunner 13137 | -8/Materials | Core integrity fell below 50% 13184 | -8/Materials | Destroyed 7 combat bots 13220 | -8/Materials | Discovered new exit (range 7) 13435 | -8/Materials | Build established: Mutant 13573 | -8/Materials | Entered Factory 13573 | -7/Factory | Evolved 2 slots: Propulsion x1, Utility x1 13574 | -7/Factory | Identified exit to Lower Caves 13575 | -7/Factory | Identified exit to Factory 13577 | -7/Factory | Loaded intel: 81 trap records 13997 | -7/Factory | Identified System Purifier 14287 | -7/Factory | Garrison activated, responded to threat 14348 | -7/Factory | Identified exit to Garrison 14348 | -7/Factory | Entered Garrison 14387 | -7/Garrison | Garrison Relay disabled 14400 | -7/Garrison | Triggered checkpoint 14403 | -7/Garrison | AWS/Thermal suddenly broke down 14471 | -7/Garrison | Found embedded Infiltrators 14579 | -7/Garrison | Triggered checkpoint 14586 | -7/Garrison | Triggered checkpoint 14593 | -7/Garrison | Triggered checkpoint 14614 | -7/Garrison | Triggered checkpoint 14712 | -7/Garrison | Triggered checkpoint 14736 | -7/Garrison | Garrison Relay disabled 14795 | -7/Garrison | Phase Generator disabled 14806 | -7/Garrison | Discovered new exit (range 11) 14886 | -7/Garrison | Discovered new exit (range 10) 14967 | -7/Garrison | Build established: Scavenger-Gunner 15012 | -7/Garrison | Triggered checkpoint 15078 | -7/Garrison | Garrison Relay disabled 15096 | -7/Garrison | H-XX Assembler disabled 15646 | -7/Garrison | Discovered new exit (range 3) 15672 | -7/Garrison | Crushed by falling debris 15674 | -7/Garrison | Identified exit to Factory 15846 | -7/Garrison | Triggered checkpoint 15931 | -7/Garrison | Garrison Relay disabled 16231 | -7/Garrison | Entered Factory 16231 | -7/Factory | Accompanied by 1 ally 16237 | -7/Factory | Identified exit to DSF 16237 | -7/Factory | Entered DSF 16237 | -7/DSF | Accompanied by 1 ally 16256 | -7/DSF | Additional patrols routed to DSF 16370 | -7/DSF | Core integrity fell below 50% 16496 | -7/DSF | Discovered exit to Factory (range 16) 16728 | -7/DSF | Build established: Scavenger-Mutant 19035 | -7/DSF | Build established: Mutant 20157 | -7/DSF | Entered Factory 20157 | -6/Factory | Evolved 2 slots: Power x1, Propulsion x1 20641 | -6/Factory | Sucked down chute 20641 | -6/Factory | Entered Waste 20642 | -6/Waste | Met a frightened Derelict 20654 | -6/Waste | Spotted C-40 Crusher 20655 | -6/Waste | Spotted C-40 Crusher 20656 | -6/Waste | EMP discharged 20670 | -6/Waste | Spotted C-40 Crusher 20678 | -6/Waste | Crushed by Compactor (1 part destroyed, 2 dropped) 20714 | -6/Waste | Spotted C-40 Crusher 20733 | -6/Waste | Spotted C-40 Crusher 20739 | -6/Waste | Spotted C-40 Crusher 20751 | -6/Waste | Crushed by Compactor (1 part destroyed, 1 dropped) 20752 | -6/Waste | Crushed by Compactor (1 part destroyed, 1 dropped) 20754 | -6/Waste | Crushed by Compactor (1 part destroyed, 1 dropped) 20754 | -6/Waste | Crushed by Compactor (1 part destroyed, 2 dropped) 20755 | -6/Waste | Crushed by Compactor (1 part destroyed) 20756 | -6/Waste | EMP discharged 20756 | -6/Waste | System corruption reached 10% 20762 | -6/Waste | Discovered new exit (range 14) 20769 | -6/Waste | Entered Factory 20781 | -6/Factory | Discovered new exit (range 12) 20786 | -6/Factory | Lost 5 parts (1p2n2u) 20865 | -6/Factory | Core integrity fell below 50% 20983 | -6/Factory | Identified exit to Factory 20986 | -6/Factory | Entered another Factory area 20986 | -5/Factory | Evolved 2 slots: Utility x2 20987 | -5/Factory | Identified exit to Extension 21455 | -5/Factory | Lost 6 parts (2n2u2w) 21626 | -5/Factory | Core integrity fell below 50% 21632 | -5/Factory | Manually triggered Chute Trap 21632 | -5/Factory | Sucked down chute 21632 | -5/Factory | Entered Waste 21636 | -5/Waste | Spotted C-40 Crusher 21640 | -5/Waste | Spotted C-40 Crusher 21647 | -5/Waste | EMP discharged 21647 | -5/Waste | System corruption reached 10% 21649 | -5/Waste | Spotted C-40 Crusher 21649 | -5/Waste | Spotted C-40 Crusher 21650 | -5/Waste | Spotted C-40 Crusher 21654 | -5/Waste | Spotted C-40 Crusher 21662 | -5/Waste | Crushed by Compactor (1 part destroyed, 2 dropped) 21664 | -5/Waste | Discovered new exit (range 12) 21669 | -5/Waste | Identified exit to Factory 21680 | -5/Waste | Entered Factory 21831 | -5/Factory | Identified exit to Factory 21858 | -5/Factory | Entered another Factory area 21858 | -4/Factory | Evolved 2 slots: Propulsion x2 21950 | -4/Factory | Identified exit to Upper Caves 21983 | -4/Factory | Entered Upper Caves 21987 | -4/Upper Caves | Attracted the attention of an 0b10 checkpoint 21999 | -4/Upper Caves | Met a Warlord Commander 22001 | -4/Upper Caves | Warlord Commander delivered Encrypted Comm Array 22129 | -4/Upper Caves | Found Alien Artifact 22138 | -4/Upper Caves | Attracted the attention of an 0b10 outpost 22188 | -4/Upper Caves | Discovered new exit (range 6) 22189 | -4/Upper Caves | Identified exit to Upper Caves 22190 | -4/Upper Caves | Entered another Upper Caves area 22190 | -4/Upper Caves | Spotted 1Z-K6O(f) 22190 | -4/Upper Caves | Spotted A3-RRD(f) 22191 | -4/Upper Caves | Field Propulsion Array stolen by Master Thief 22192 | -4/Upper Caves | Encountered a Master Thief 22192 | -4/Upper Caves | Encountered a Master Thief 22192 | -4/Upper Caves | Identified Dimensional Node Initializer 22192 | -4/Upper Caves | Initialized slip node 22193 | -4/Upper Caves | Spotted 3D-EIN(f) 22194 | -4/Upper Caves | Encountered a Master Thief 22225 | -4/Upper Caves | Destroyed 3D-EIN(f) 22280 | -4/Upper Caves | Encountered a Warlord checkpoint 22296 | -4/Upper Caves | Spotted B-86 Titan 22302 | -4/Upper Caves | Discovered new exit (range 10) 22306 | -4/Upper Caves | Attracted the attention of an 0b10 checkpoint 22307 | -4/Upper Caves | Entered Zhirov 22307 | -4/Zhirov | Discovered new exit (range 3) 22326 | -4/Zhirov | Learned location of Quarantine (-2) 22326 | -4/Zhirov | Learned location of Testing (-3) 22326 | -4/Zhirov | Learned location of Command (-1) 22339 | -4/Zhirov | Found Alien Artifact 22339 | -4/Zhirov | Identified Integrated Reactor 22339 | -4/Zhirov | Installed Integrated Reactor, increased core energy generation (+10) 22347 | -4/Zhirov | Found Alien Artifact 22380 | -4/Zhirov | Entered Proximity Caves 22386 | -3/Proximity Caves | Core integrity fell below 50% 22439 | -3/Proximity Caves | Discovered new exit (range 11) 22441 | -3/Proximity Caves | Entered Research 22441 | -3/Research | Evolved 2 slots: Propulsion x2 22442 | -3/Research | Identified exit to Armory 22483 | -3/Research | Spotted B-86 Titan 22515 | -3/Research | Entered Armory 22623 | -3/Armory | Spotted B-86 Titan 22648 | -3/Armory | Build established: Sprinter 22652 | -3/Armory | Lost 3 parts (1p1n1u) 22673 | -3/Armory | Discovered new exit (range 4) 22673 | -3/Armory | Entered Research 22673 | -2/Research | Evolved 2 slots: Propulsion x2 22704 | -2/Research | Lost 3 parts (1n1u1w) 22769 | -2/Research | Identified exit to Quarantine 22773 | -2/Research | Spotted B-90 Cyclops 22834 | -2/Research | Entered Quarantine 22844 | -2/Quarantine | Found Alien Artifact 22852 | -2/Quarantine | Found Alien Artifact 22855 | -2/Quarantine | Lost 3 parts (3n) 22865 | -2/Quarantine | Found Alien Artifact 22865 | -2/Quarantine | Identified Core Reset Matrix 22865 | -2/Quarantine | Identified Transdimensional Reconstructor (x2) 22865 | -2/Quarantine | Identified Subatomic Replicator 22865 | -2/Quarantine | Used Core Reset Matrix 22869 | -2/Quarantine | Detected hypermatrix surge 22869 | -2/Quarantine | Sensed 15 artifacts in vicinity 22878 | -2/Quarantine | Found Terrabomb 22887 | -2/Quarantine | Found Terrabomb 22936 | -2/Quarantine | Used Terrabomb 22937 | -2/Quarantine | Met incapacitated Sigix Warrior 22937 | -2/Quarantine | Lockdown squad dispatched 22949 | -2/Quarantine | Found Sigix Containment Pod 22955 | -2/Quarantine | Scanned by Researcher 22976 | -2/Quarantine | Found Matter Drive 22990 | -2/Quarantine | Found Core Stripper 22999 | -2/Quarantine | Found Sigix Broadsword 23040 | -2/Quarantine | Found Phase Redirector 23043 | -2/Quarantine | Discovered new exit (range 3) 23046 | -2/Quarantine | Identified exit to Access 23047 | -2/Quarantine | Entered Access 23047 | -1/Access | Evolved 2 slots: Utility x2 23093 | -1/Access | Spotted B-99 Colossus 23147 | -1/Access | Lost 6 allies 23172 | -1/Access | Spotted B-99 Colossus 23173 | -1/Access | Spotted B-99 Colossus 23177 | -1/Access | Discovered new exit (range 3) 23178 | -1/Access | Identified exit to Command 23178 | -1/Access | Entered Command 23208 | -1/Command | Lost 10 allies 23237 | -1/Command | Spotted M Guard 23237 | -1/Command | Spotted M Guard 23237 | -1/Command | Spotted Combat Programmer 23237 | -1/Command | Spotted Combat Programmer 23262 | -1/Command | Met MAIN.C 23266 | -1/Command | 0b10 Conduit disabled 23271 | -1/Command | MAIN.C activated Command garrisons 23298 | -1/Command | Identified exit to Surface 23309 | -1/Command | Used Subatomic Replicator to replicate Sigix Containment Pod 23313 | -1/Command | Used Terrabomb 23314 | *** | Destroyed 0b10! Last Messages --------------- 23298_ Connecting with Terminal... >>Access(Main) Found 2 level access points to Surface: (201,105) (81,75) Map updated. 23302_ Slug penetrates Wall. 23308_ C-30 ARC bursts open, deploying its payload. 23308_ P-80 Master unfolds itself. 23309_ Dropped Sigix Containment Pod. 23309_ Replicated Sigix Containment Pod. 23310_ Sigix Containment Pod: "Completely unsanctioned use of that technology." 23310_ Sigix Containment Pod: "I agree." 23310_ Dropped Transdimensional Reconstructor. 23311_ Acquired Sigix Containment Pod. 23312_ K-01 Serf cleans the TF Node. 23313_ W-44 Eye sends out distress signal. 23313_ Terrabomb activated. Map ----- +----------------------------------------------------+ | ?????????????????????????????????????????????????? | | ?????????????????????????????????????????????????? | | ?????????????????????????????????????????????????? | | ?????????????????????????????????????????????????? | | ??????????????????????? ? ?????????????????????? | | ????????????????????? ? ???????????????????? | | ??????????????????"" ? ?## ????????????????? | | ???????????????? + "; ??????????????? | | ????????????? o ; ;; "??????????????? | | ??????????? ; ;; """" ?????????? | | ?????????? ; ;; "" ????????? | | ????????? ; ;; #???????? | | ????????? !* ; ;; #???????? | | ???????? * ;;;;";;;;;;;+;;;;;#??????? | | ???????? k ; #?????? | | ????????" ; #????#" | | ????????" R ; ????#" | | ???????"" ;;;;;;;;+;;;;;;; " #???#" | | ??????"" ; ; ; ; ;;; ???#" | | ????? C ; ; ; ; ; #??#" | | ?????? ; ; ; ; ; ??#" | | ????? ; ; ; ; ; ??# | | ????? ; ;;;;;;;;;#; ; ; #?# | | ???? ; ;;;;; ; ; ; ; #?# | | ??????#;;;;; ; ; ; ; ; ; ; #?#" | | ??????#; ;;;;; @ ! ; ; ; ; #?# | | ???? ;; w k ; ; ; ;k R ; ;## | | ??????#;! " p R p ; ; ; ; ; # " | | ??????#; k ;;+;;;;;;;;;;;;; ;g; ; ;;;""" | | ??????#;; ;; ;;;;;;;;;;;/;;; | | ??????# ; ;; ;; """T"""g ;; ! | | ??????# ; ;; ;; """ """ s;; | | ??????# ; ;; ;; g g g s;; ;"### | | ???????#; R;; k ;; = s %s!s;; "#??# | | ???????#;k ;; k ;; ;; "???# | | ????????# ;; ;; + R #???## | | ????????# ;; ;; ;; #????? | | ???????? w ;; * ;;;;;;;+;;;;;;; #????? | | ????????? ;; + ;;;;;;; #????? | | ????????? ;; ;;;;; #????? | | ?????????? #; ; ; ] #????? | | ???????????## ?; ; ""#????? | | ????????????# ; ? ; h ""#????? | | ?????????????? ? ;???" ""#????? | | ???????????????????;????# T#????? | | ????????????????????????# ""#????? | | ????????????????????????# ""#????? | | ????????????????########## ##### ""#????? | | ????????????????# " # #???# ###### | | ????????????????# !!% " #???# | +----------------------------------------------------+ Best States ------------- Heat Dissipation 64 Energy Generation 35 Energy Capacity 350 Matter Stores 300 Matter Capacity 300 Sight Range 22 Robot Scan Range 16 Terrain Scan Density 10 Corruption Containment 12 Armor Coverage 600 Resistance: KI 30 Core Shielding 20 Propulsion Shielding 90 Utility Shielding 66 Weapon Cycling 25 Phase Shifting 5 Evasion (%) 68 Targeting Accuracy 16 Melee Accuracy 8 Target Analysis 11 Core Analysis 6 Armor Integrity Analysis 40 Recoil Reduction 4 Kinecelleration 40 Salvage Targeting 4 Offensive Hacking 10 Defensive Hacking 24 Authchip Count 2 Item Schematics ----------------- Adv. Myomer Leg | -2/Quarantine | Archive Exp. Power Amplifier | -2/Quarantine | Archive Hvy. Neutron Cannon | -2/Quarantine | Archive Proton Burst Cannon | -2/Quarantine | Archive Adv. Remote Shield | -2/Quarantine | Archive Exp. Core Analyzer | -2/Quarantine | Archive Exp. Optical Array | -2/Quarantine | Archive Lgt. Antimatter Cannon | -2/Quarantine | Archive Multireflex Exoskeleton | -2/Quarantine | Archive Adv. EM Disruption Field | -2/Quarantine | Archive Robot Schematics ------------------ None Fabricated ------------ Nothing Repaired ---------- Nothing Alien Tech Used ----------------- Dimensional Node Initializer Integrated Reactor Core Reset Matrix Terrabomb Matter Drive Core Stripper Sigix Broadsword Phase Redirector Subatomic Replicator Achievements -------------- Meet Your Maker Challenges ------------ None Game ------ Seed ForceDecoderReplicator Manual? 0 Play Time 02:37:12 Cumulative 281.5 hours Start 2025.09.11 @ 19:40:07 End 2025.09.11 @ 23:48:10 Sessions 19 Manual Loads 0 Difficulty Rogue Special Mode None Game No. 404 Rogue 404 Adventurer 0 Explorer 0 Win Type 3 Total 8 Types 5/0/1/2/0/0/0/0/0/0 Lore% 83 Gallery% 80 Achievement% 62 Wizard Run 0 Options --------- Layout 1 ASCII 0 Keyboard 0 Movement Mouse Keybinds 0 Fullscreen 1 Font 24/Smallcaps Map View 50x40 Zoom Use 0% Tactical HUD 1 Map Filters NONE Filters NONE Steam 1 RUN: 4180c4a0-ce04-420b-94de-99ce9cceb752